Cogmind - Beta 9.4 @@@ ROGUE MODE // 2020.03.22 @ 17:15:39 Player: JerichoBot Result: Self-destructed Performance ------------- Evolutions (1) 500 Regions Visited (2) 400 Robots Destroyed (9) 45 Value Destroyed (198) 198 Prototype IDs (0) 0 Alien Tech Used (0) 0 Bonus (0) 0 TOTAL SCORE: 1143 Bonus ------- None Cogmind --------- Core Integrity 400/400 Matter 254/300 Energy 250/250 System Corruption 0% Temperature Cool (0) Movement Walking (150) Ox1 Location -9/Materials Parts ------- > --- POWER (1) -------- Ion Engine > --- PROPULSION (2) --- Aluminum Leg Aluminum Leg > --- UTILITY (4) ------ Improved Heat Sink Large Storage Unit Signal Interpreter Targeting Computer > --- WEAPON (2) ------- Small Laser Small Laser > --- INVENTORY (10) --- Light Ion Engine Light Treads Light Treads Aluminum Leg Aluminum Leg Hacking Suite Small Laser Mining Claw Peak State ------------ > --- POWER ------------ Ion Engine > --- PROPULSION ------- Aluminum Leg Aluminum Leg > --- UTILITY ---------- Improved Heat Sink Large Storage Unit Signal Interpreter Targeting Computer > --- WEAPON ----------- Small Laser Small Laser > --- INVENTORY -------- Light Ion Engine Light Treads Light Treads Aluminum Leg Aluminum Leg Hacking Suite Small Laser Mining Claw [Rating: 12] Favorites ----------- Power Ion Engine Engine Ion Engine Propulsion Aluminum Leg Leg Aluminum Leg Utility Large Storage Unit Device Improved Heat Sink Storage Large Storage Unit Processor Signal Interpreter Protection Light Armor Plating Weapon Small Laser Energy Gun Small Laser Launcher Grenade Launcher Build | -11 -10 -9 ------- Run | Scr Mat Mat Slots Evolved 2 | . . 2 Power . | . . . Propulsion . | . . . Utility 2 | . . 2 Weapon . | . . . Parts Attached 21 | 6 13 2 Power 3 | 1 2 . Engine 3 | 1 2 . Core . | . . . Reactor . | . . . Propulsion 4 | 2 2 . Treads . | . . . Leg 4 | 2 2 . Wheel . | . . . Hover . | . . . Flight . | . . . Utility 7 | 1 4 2 Device 1 | . 1 . Storage 3 | 1 2 . Processor 2 | . . 2 Hackware . | . . . Protection 1 | . 1 . Artifact . | . . . Weapon 7 | 2 5 . Energy Gun 6 | 2 4 . Energy Cannon . | . . . Ballistic Gun . | . . . Ballistic Cannon . | . . . Launcher 1 | . 1 . Special Weapon . | . . . Impact Weapon . | . . . Slashing Weapon . | . . . Piercing Weapon . | . . . Special Melee Weapon . | . . . Unidentified Prototypes . | . . . Parts Lost 3 | . 3 . Power 1 | . 1 . Propulsion . | . . . Utility . | . . . Weapon 2 | . 2 . Highest Loss Streak 2 | . 2 . Average Slot Usage (%) 96 | . 95 100 Engine 13 | . 13 11 Leg 26 | . 28 22 Device 8 | . 8 11 Storage 13 | . 14 11 Processor 4 | . . 22 Protection 1 | . 1 . Energy Gun 26 | . 27 22 Naked Turns . | . . . Heaviest Build 28 | 11 28 24 Greatest Support 20 | 20 20 20 Greatest Overweight (x) 1 | . 1 1 Average Overweight (x) . | . . 1 Largest Inventory Capacity 16 | 6 16 10 Average Capacity 9 | 5 9 10 Most Carried 9 | 4 9 8 Average Carried 6 | 1 7 7 Final Capacity 10 | 6 10 10 Final Carried 9 | 4 9 8 Class Distribution -------------------- 100% | Mutant Dominant Class ---------------- Mutant | -10/Materials Mutant | -9/Materials Resources | -11 -10 -9 ----------- Run | Scr Mat Mat Matter Collected 360 | 220 140 . Remotely . | . . . Salvage Created 270 | . 270 . Parts 16 | . 16 . Haulers Intercepted 1 | . 1 . Recyclers Shooed . | . . . Parts Field Recycled . | . . . Retrieved Matter . | . . . Parts Self-Destructed . | . . . Prevented . | . . . Kills | -11 -10 -9 ------- Run | Scr Mat Mat Combat Hostiles Destroyed 6 | . 6 . Guns 5 | . 5 . AOE 1 | . 1 . Classes Destroyed 5 | . 5 . Worker 1 | . 1 . Hauler 1 | . 1 . Operator 1 | . 1 . Swarmer 2 | . 2 . Grunt 4 | . 4 . Best Kill Streak 2 | . 2 . Combat Bots Only 2 | . 2 . Max Kills in Single Turn 2 | . 2 . Gunslinging . | . . . Exploded 1 | . 1 . Melee . | . . . Uniques/NPCs Destroyed . | . . . Combat | -11 -10 -9 -------- Run | Scr Mat Mat Damage Taken 613 | . 613 . Core 199 | . 199 . Absorbed by Shields . | . . . Core Remaining (%) 60 | 100 20 . Volleys Fired 38 | . 35 3 Largest 2 | . 2 2 Hottest 80 | . 80 80 Shots Fired 76 | . 70 6 Gun 75 | . 69 6 Cannon . | . . . Launcher 1 | . 1 . Special . | . . . Kinetic . | . . . Thermal 75 | . 69 6 Explosive 1 | . 1 . Electromagnetic . | . . . Robot Hit Streak 6 | . 6 4 Robot Miss Streak 3 | . 3 2 Penetration Max . | . . . Secondary Targets . | . . . Shots Hit Robots 46 | . 42 4 Core Hits 19 | . 18 1 Critical Hits . | . . . Critical Kills . | . . . Critical Parts Destroyed . | . . . Melee Attacks . | . . . Impact . | . . . Slashing . | . . . Piercing . | . . . Sneak Attacks . | . . . Combat Hostiles . | . . . Follow-up Attacks . | . . . Damage Inflicted 596 | . 551 45 Guns 517 | . 472 45 Cannons . | . . . Explosions 79 | . 79 . Melee . | . . . Ramming . | . . . Kinetic . | . . . Thermal 517 | . 472 45 Explosive 79 | . 79 . Electromagnetic . | . . . Impact . | . . . Slashing . | . . . Piercing . | . . . Highest Corruption 2 | . 2 . Average Corruption 2 | . 2 . Corruption Purged . | . . . Effects 5 | . 5 . Message Errors 4 | . 4 . Data Loss (minor) 1 | . 1 . Overload Shots . | . . . Overflow Damage . | . . . Projectiles . | . . . Explosions . | . . . Melee . | . . . Knockbacks . | . . . Impact . | . . . Kinetic . | . . . Secondary . | . . . Self-Inflicted Damage . | . . . Shots . | . . . Rammed 1 | . 1 . Targets Rammed 1 | . 1 . Kicked . | . . . Crushed . | . . . Highest Temperature 481 | . 481 . Average Temperature 166 | . 166 . Received Heat Transfer 192 | . 192 . Effects 3 | . 3 . Shutdowns 1 | . 1 . Matter Decay 1 | . 1 . Damage (minor) 1 | . 1 . Siege Activations . | . . . Robots Corrupted . | . . . Combat Hostiles . | . . . Parts Fried . | . . . Impact Corruptions . | . . . Robots Melted . | . . . Combat Hostiles . | . . . Parts Melted . | . . . Heat Transferred 1175 | . 1075 100 Parts Sabotaged . | . . . Parts Stolen . | . . . Parts Stripped . | . . . Power Chain Reactions . | . . . Missiles Intercepted . | . . . Alert | -11 -10 -9 ------- Run | Scr Mat Mat Peak Influence 163 | . 163 72 Average Influence 45 | . 53 31 Maximum Alert Level . | . . . Low Security (%) 100 | 100 100 100 Level 1 . | . . . Level 2 . | . . . Level 3 . | . . . Level 4 . | . . . Level 5 . | . . . High Security . | . . . Max Security . | . . . Squads Dispatched 3 | . 1 2 Investigation . | . . . Extermination . | . . . Reinforcement 3 | . 1 2 Assault . | . . . Garrison . | . . . Intercept . | . . . Construction Impeded . | . . . Haulers Reinforced . | . . . Stealth | -11 -10 -9 --------- Run | Scr Mat Mat Distress Signals 1 | . 1 . Communications Jammed . | . . . Distress Signals . | . . . Times Spotted 16 | . 14 2 Peak Tracking Total 5 | . 5 1 Tactical Retreats . | . . . Traps | -11 -10 -9 ------- Run | Scr Mat Mat Traps Triggered 2 | . 2 . Indirectly . | . . . Trap Hack Attempts . | . . . Triggered . | . . . Disarmed . | . . . Reprogrammed . | . . . Reused . | . . . Traps Extracted . | . . . Installed . | . . . Triggered . | . . . Machines | -11 -10 -9 ---------- Run | Scr Mat Mat Machines Disabled 1 | . 1 . Max in Single Turn 1 | . 1 . Machines Sabotaged . | . . . Garrisons Compromised . | . . . Overloaded Fab Kills . | . . . Fab Network Shutdowns . | . . . Hacking | -11 -10 -9 --------- Run | Scr Mat Mat Machines Accessed 3 | . 2 1 Terminals 3 | . 2 1 Fabricators . | . . . Repair Stations . | . . . Recycling Units . | . . . Scanalyzers . | . . . Garrison Access . | . . . Total Hacks 11 | . 6 5 Successful 4 | . 2 2 Failed 7 | . 4 3 Catastrophic 1 | . 1 . Database Lockouts . | . . . Manual 11 | . 6 5 Terminals 11 | . 6 5 Fabricators . | . . . Repair Stations . | . . . Recycling Units . | . . . Scanalyzers . | . . . Garrison Access . | . . . Terminal Hacks 1 | . 1 . Scanalyzer Index 1 | . 1 . Fabricator Hacks . | . . . Repair Station Hacks . | . . . Recycling Unit Hacks . | . . . Scanalyzer . | . . . Garrison Access Hacks . | . . . Unauthorized Hacks 9 | . 2 7 Terminals 3 | . 1 2 Botnet 1 | . . 1 Operators 2 | . 1 1 Fabricators . | . . . Repair Stations . | . . . Recycling Units . | . . . Scanalyzers . | . . . Garrison Access . | . . . Data Cores Recovered . | . . . Used . | . . . Hacking Detections 3 | . 2 1 Full Trace Events . | . . . Feedback Events . | . . . Feedback Blocked . | . . . Robot Schematics Acquired . | . . . Robots Built . | . . . Matter . | . . . Time . | . . . Total Robot Build Rating . | . . . Part Schematics Acquired . | . . . Parts Built . | . . . Matter . | . . . Time . | . . . Total Part Build Rating . | . . . Parts Repaired . | . . . Time . | . . . Parts Recycled . | . . . Recycled Matter . | . . . Retrieved Matter . | . . . Retrieved Components . | . . . Parts Scanalyzed . | . . . Part Schematics Acquired . | . . . Parts Damaged . | . . . Bothacking | -11 -10 -9 ------------ Run | Scr Mat Mat Used RIF Installer . | . . . Robots Hacked . | . . . Non-combat . | . . . Combat . | . . . Robot Hacks Applied . | . . . Relay Couplers Released . | . . . Robots Rewired . | . . . Allies Hacked . | . . . Hacks Repelled . | . . . Allies | -11 -10 -9 -------- Run | Scr Mat Mat Total Allies . | . . . Largest Group . | . . . Highest-Rated Group . | . . . Highest-Rated Ally . | . . . Total Orders . | . . . Ally Attacks . | . . . Total Damage . | . . . Kills . | . . . Allies Corrupted . | . . . Allies Melted . | . . . Intel | -11 -10 -9 ------- Run | Scr Mat Mat Robot Analysis Total . | . . . Derelict Logs Recovered . | . . . Drone Launches . | . . . Drone Recoveries . | . . . Exploration | -11 -10 -9 ------------- Run | Scr Mat Mat Turns Passed 1028 | 76 761 191 Spaces Moved 608 | 59 430 119 Core 10 | 10 . . Treads . | . . . Legs 598 | 49 430 119 Wheels . | . . . Hover . | . . . Flight . | . . . Fastest Speed 50 | 50 120 150 Average Speed 140 | 108 142 150 Slowest Speed 150 | 120 150 150 Overloaded Moves . | . . . Propulsion Burnouts . | . . . Robots Hopped . | . . . Cave-ins Triggered . | . . . Exploration Rate (%) 24 | 3 58 11 Regions Visited 2 Branch Regions . Pre-discovered Areas . | . . . Known Exits Taken . | . . . Unknown Exits Taken 2 | 1 1 . Scrap Searched . | . . . Spaces Dug . | . . . Terrain Destroyed 5 | . 5 . Melee . | . . . Projectile . | . . . AOE 5 | . 5 . Actions | -11 -10 -9 --------- Run | Scr Mat Mat Total 696 | 68 503 125 Wait 17 | . 17 . Move 606 | 58 429 119 Hop . | . . . Pick Up 10 | 4 5 1 Fast Attach 9 | 6 3 . Attach 5 | . 3 2 Detach . | . . . Swap 7 | . 7 . Drop 3 | . 3 . Fire 38 | . 35 3 Melee . | . . . Ram . | . . . Kick 1 | . 1 . Crush . | . . . Escape Stasis . | . . . Rewire . | . . . Trap . | . . . Miscellaneous . | . . . Route ------- -11/Scrapyard -10/Materials (discovered 3 exits: *Mat x2 / [*Min]) -9/Materials History --------- Turn | Location | Event 5 | -11/Scrapyard | Discovered new exit (range 14) 77 | -11/Scrapyard | Entered Materials 263 | -10/Materials | Discovered new exit (range 15) 340 | -10/Materials | Build established: Mutant 355 | -10/Materials | Core integrity fell below 50% 481 | -10/Materials | Discovered new exit (range 11) 804 | -10/Materials | Discovered new exit (range 15) 838 | -10/Materials | Entered another Materials area 838 | -9/Materials | Evolved 2 slots: Utility x2 1029 | -9/Materials | Self-destructed Last Messages --------------- 00912_ Current location identified: Materials >>Trojan(Operators) Trojan loaded successfully. Testing... Operator tracking enabled and active. >>Trojan(Botnet) Trojan loaded successfully. Testing... Terminal linked with 0 systems. Awaiting botnet instructions. 00918_ Connecting with Terminal... 00949_ O-16 Technician: "IFF HANDSHAKE FAILED. SECURING TERMINAL." 00950_ O-16 Technician uses terminal to summon reinforcements. 00950_ ALERT: Hostiles spotted, dispatching reinforcements to Terminal M003. 00950_ O-16 Technician locks terminal. 00950_ O-16 Technician cleans trojans from system. 01020_ K-01 Serf collects debris. 01023_ O-16 Technician: "IFF HANDSHAKE FAILED. SECURING TERMINAL." 01026_ ALERT: Hostiles spotted, dispatching reinforcements to Terminal M008. 01028_ K-01 Serf collects debris. Map ----- +----------------------------------------------------+ | ????????????????????# #?????????????# # | | ????????????????????# """""#?????????????# # | | ????????????????????# """""############### + | | ????????????????????# """""# # | | ????????????????????# """""# # | | ????????????????????# """""# # | | ????????????????????# """""# ############### | | ????????????????????# """""# # /! #??????# | | ????????????????????# # # ! #??????### | | ????????????????????######+### + !! #????????? | | ??????????????????????# # #????????? | | ??????????????????????# # #????????? | | ??????????????????????# # #????????? | | ??????????????????????# #####+#########????????? | | ??????????????????????# # #???????????????? | | ??????????????????????# # T #???????????????? | | ??????????????????????# + #???????????????? | | ??????????????????????# # #???????????????? | | ??????????????????????# # [ #???????????????? | | ??????????????????????# # #???????????????? | | ??????????????????????# ########???????????????? | | ??????????????????????# #??????????????????????? | | ??????????????????????# #??????????????????????? | | ??????????????????????#k ####???????????????????? | | ??????????????????????# !!##??????????????????? | | ??????????????????????# @ !#??????????????????? | | ??????????????????????# !#??????????????????? | | ??????????????????????# !#??????????????????? | | ??????????????????????# !#??????????????????? | | ?????????????????????? !!##??????????????????? | | ????????????????????? ####???????????????????? | | ????????????????????] #??????????????????????? | | ???????????????????]] #??????????????????????? | | ??????????????????#!! #??????????????????????? | | ??????????????????#!! ???????????????????????? | | ??????????????????##### ???????????????????????? | | ??????????????????????# ???????????????????????? | | ??????????????????????#gk ???????????????????????? | | ??????????????????????# ???????????????????????? | | ??????????????????????# ???????????????????????? | | ??????????????????????? ???????????????????????? | | ?????????????????????????????????????????????????? | | ?????????????????????????????????????????????????? | | ?????????????????????????????????????????????????? | | ?????????????????????????????????????????????????? | | ?????????????????????????????????????????????????? | | ?????????????????????????????????????????????????? | | ?????????????????????????????????????????????????? | | ?????????????????????????????????????????????????? | | ?????????????????????????????????????????????????? | +----------------------------------------------------+ Best States ------------- Heat Dissipation 42 Energy Generation 10 Energy Capacity 250 Matter Stores 300 Matter Capacity 300 Sight Range 16 Terrain Scan Density 10 Armor Coverage 150 Evasion (%) 40 Targeting Accuracy 5 Item Schematics ----------------- None Robot Schematics ------------------ None Fabricated ------------ Nothing Alien Tech Used ----------------- None Achievements -------------- None Challenges ------------ None Game ------ Seed QuantumSurgeSink Manual? 0 Play Time 00:11:13 Cumulative 21.5 hours Start 2020.03.22 @ 17:03:36 End 2020.03.22 @ 17:15:39 Sessions 1 Manual Loads 0 Difficulty Rogue Special Mode None Game No. 24 Rogue 24 Adventurer 0 Explorer 0 Win Type - Total 0 Types 0/0/0/0/0/0/0 Lore% 13 Gallery% 32 Achievement% 25 Wizard Run 0 Options --------- ASCII 0 Keyboard 0 Movement Arrows Keybinds 0 Fullscreen 2 Font 16/SmallcapsGlow Map View 82x53 Tactical HUD 1 Map Filters NONE Filters NONE Steam 0 RUN: 96c969c7-1038-4fb5-a62d-76a1f0eba0b0